bitfinex-derivatives/quotes_ETHF0:USTF0_20250624
["timestamp","ask_amount","ask_price","bid_price","bid_amount"]
[1750807666257,1.0338531,2434.6,2434.5,0.65692]
[1750807666460,1.0338531,2434.6,2434.5,1.36252]
[1750807670954,1.6907531,2434.6,2434.5,1.36252]
[1750807671154,0.65692,2434.5,2434.4,0.65693]
[1750807671458,2.3894731,2434.5,2434.4,0.65693]
[1750807673657,1.7325531,2434.5,2434.4,0.65693]
[1750807676458,1.0338531,2434.5,2434.4,0.65693]
[1750807676659,26.5094,2434.7,2434.6,0.6569]
[1750807676862,27.54554589,2434.7,2434.6,0.6569]
[1750807678164,26.83854589,2434.7,2434.6,0.6569]
[1750807680460,26.82854589,2434.7,2434.6,0.6569]
[1750807681267,1.03614589,2434.7,2434.6,3.8647]
[1750807681460,3.44428495,2434.7,2434.6,0.6569]
[1750807681661,1.69154589,2434.7,2434.6,0.6569]
[1750807681861,1.03614589,2434.7,2434.6,0.6569]
[1750807682061,26.13114589,2434.7,2434.6,0.6569]
[1750807682766,26.13114589,2434.7,2434.6,1.3796]
[1750807685571,28.53928495,2434.7,2434.6,1.3796]
[1750807686471,28.53928495,2434.7,2434.6,0.6569]
[1750807690075,29.19615495,2434.7,2434.6,0.6569]
[1750807690578,28.53928495,2434.7,2434.1,3.00197]
[1750807690781,2.40813906,2434.5,2434.1,3.72487]
[1750807690979,26.12514589,2434.4,2434.1,3.72487]
[1750807691178,1.03614589,2434.3,2434.2,0.657]
[1750807692083,25.089,2434.4,2434.3,0.65698]
[1750807692278,26.12441689,2434.4,2434.3,0.65698]
[1750807697189,26.12141689,2434.4,2434.3,0.65698]
[1750807698583,1.03541689,2434.4,2434.3,0.65698]
[1750807698786,25.085,2434.6,2434.3,3.86478]
[1750807698988,25.085,2434.6,2434.5,0.65692]
[1750807699190,26.12034136,2434.6,2434.5,0.65692]
[1750807699491,26.12034136,2434.6,2434.5,2.05532]
[1750807700388,26.12034136,2434.6,2434.5,0.65692]
[1750807702688,1.03534136,2434.6,2434.5,0.65692]
[1750807703190,1.03534136,2434.6,2434.5,1.36792]
[1750807703393,1.03534136,2434.6,2434.5,2.70082]
[1750807706694,31.42093906,2434.8,2434.7,0.65687]
[1750807706887,32.45623235,2434.8,2434.7,0.65687]
[1750807708194,7.37323235,2434.8,2434.7,0.65687]
[1750807708387,32.45423235,2434.8,2434.7,0.65687]
[1750807711697,7.37323235,2434.8,2434.7,0.65687]
[1750807711896,30.04309329,2434.8,2434.7,0.65687]
[1750807713191,4.24309329,2434.8,2434.7,0.65687]
[1750807713498,29.32009329,2434.8,2434.7,0.65687]
[1750807717592,4.24309329,2434.8,2434.7,0.65687]
[1750807718187,4.242801,2434.8,2434.7,0.65687]
[1750807720897,1.035001,2434.8,2434.7,0.65687]
[1750807721601,1.035001,2434.8,2434.7,1.96477]
[1750807722000,1e-06,2434.8,2434.7,6.97477]
[1750807722297,0.7078,2435.4,2435.3,0.65671]
[1750807727204,0.7078,2435.4,2434.9,0.65679]
[1750807727205,1.64178,2435.3,2434.9,0.65679]
[1750807727403,2.40813906,2435.0,2434.9,0.65682]
[1750807727801,3.10033906,2435.0,2434.9,0.65682]
[1750807731505,0.6922,2435.0,2434.9,0.65682]
[1750807731910,25.7562,2435.0,2434.9,0.65682]
[1750807732802,26.41299,2435.0,2434.9,0.65682]
[1750807733207,25.7562,2435.0,2434.9,0.65682]
[1750807734015,26.78404306,2435.0,2434.9,0.65682]
[1750807734211,27.44083306,2435.0,2434.9,0.65682]
[1750807734714,26.78404306,2435.0,2434.9,0.65682]
[1750807736516,26.08984306,2435.0,2434.9,0.65682]
[1750807736913,1.02784306,2435.0,2434.9,0.65682]
[1750807737217,26.08784306,2435.0,2434.9,1.35512]
[1750807737919,1.02784306,2435.0,2434.9,2.79772]
[1750807739321,1.02784306,2435.0,2434.9,1.35512]
[1750807739720,1.02784306,2435.0,2434.9,0.65682]
[1750807742127,1.68463306,2435.0,2434.9,0.65682]
[1750807742626,1.02784306,2435.0,2434.9,0.65682]
[1750807743323,1.68463306,2435.0,2434.9,0.65682]
[1750807744120,1.02784306,2435.0,2434.9,0.65682]
[1750807744428,1.68463306,2435.0,2434.9,0.65682]
[1750807744723,1.02784306,2435.0,2434.9,0.65682]
[1750807751823,1.02784306,2435.0,2434.9,2.04932]
[1750807752130,1.02784306,2435.0,2434.9,2.74332]
[1750807753123,1.02784306,2435.0,2434.9,4.94332]
[1750807753325,6.31574298,2435.7,2435.3,0.65671]
[1750807753532,6.31574298,2435.7,2435.6,0.65663]
[1750807753533,28.2568,2435.7,2435.6,0.65663]
[1750807753932,28.2568,2435.7,2435.6,2.04913]
[1750807754431,3.62330995,2436.0,2435.9,0.65655]
[1750807754625,28.2568,2436.0,2435.9,0.65655]
[1750807755226,28.2558,2436.0,2435.9,0.65655]
[1750807755821,28.2558,2436.0,2435.9,3.06468906]
[1750807756027,28.2558,2436.0,2435.9,2.73945]
[1750807756532,3.2078,2436.0,2435.9,2.73945]
[1750807756730,28.2558,2436.0,2435.9,2.73945]
[1750807757124,3.2078,2436.0,2435.9,2.73945]
[1750807757619,3.2078,2436.4,2435.9,5.14758906]
[1750807757825,3.2078,2436.4,2436.3,3.06457906]
[1750807758933,3.2078,2436.7,2436.6,0.65633]
[1750807759825,3.06440906,2437.0,2436.4,2.0252]
[1750807759826,12.08693906,2437.0,2436.9,0.65628]
[1750807760026,3.2078,2437.0,2436.9,0.65628]
[1750807760236,28.2468,2437.3,2437.2,0.6562]
[1750807760538,0.6562,2437.2,2436.8,2.0069]
[1750807760736,31.31111906,2437.3,2437.1,0.65621]
[1750807760934,28.2468,2437.3,2437.2,0.6562]
[1750807761146,3.2078,2437.3,2437.2,0.6562]
[1750807761532,3.2078,2437.3,2437.2,1.9822]
[1750807762833,25.034,2437.6,2437.2,1.326]
[1750807763148,3.2078,2437.7,2437.3,1.326]
[1750807763337,3.2078,2437.7,2437.6,0.65609]
[1750807763641,25.034,2437.6,2437.3,6.94193906]
[1750807763829,25.034,2437.6,2437.5,0.65612]
[1750807764036,27.44213906,2437.6,2437.4,0.65612]
[1750807764236,0.65613,2437.5,2437.3,0.65615]
[1750807764631,3.06427906,2437.4,2437.2,0.65618]
[1750807764840,0.65617,2437.3,2437.2,0.65618]
[1750807765038,6.97398906,2437.4,2437.2,0.65618]
[1750807765232,6.31783906,2437.4,2437.0,3.2078]
[1750807765428,0.6614,2437.3,2437.0,3.86404]
[1750807765729,25.6904,2437.3,2437.2,0.6562]
[1750807765930,0.65621,2437.2,2437.0,3.2078]
[1750807766242,26.34659,2437.3,2437.1,0.65622]
[1750807766434,0.6562,2437.2,2437.1,0.65622]
[1750807767041,26.38707,2437.4,2437.0,3.2078]
[1750807767244,25.7309,2437.4,2437.1,0.65621]
[1750807767635,0.6562,2437.3,2437.1,0.65621]
[1750807767840,25.7309,2437.4,2437.2,0.65619]
[1750807768041,26.38705,2437.4,2437.3,0.65617]
[1750807768542,26.38705,2437.4,2437.0,4.5846]
[1750807768843,26.38705,2437.4,2437.3,0.65617]
[1750807769043,25.7309,2437.4,2437.3,0.65617]
[1750807769443,25.029,2437.4,2437.3,3.86397]
[1750807769847,3.8692,2437.7,2437.6,0.65609]
[1750807770346,28.8942,2437.7,2437.6,0.65609]
[1750807770544,29.55026,2437.7,2437.6,0.65609]
[1750807770948,0.65609,2437.6,2437.5,0.6561]
[1750807771950,25.67909,2437.6,2437.5,0.6561]
[1750807772648,25.023,2437.6,2437.5,0.6561]
[1750807773049,3.8692,2437.7,2437.6,0.65609]
[1750807773251,28.2298,2437.7,2437.6,0.65609]
[1750807774151,28.2298,2437.7,2437.3,2.8046]
[1750807774355,28.88588,2437.7,2437.6,0.65609]
[1750807774542,28.2298,2437.7,2437.6,0.65609]
[1750807774741,28.88586,2437.7,2437.6,0.65609]
[1750807775648,28.88586,2437.7,2437.3,7.65281]
[1750807775649,0.65609,2437.6,2437.5,0.6561]
[1750807776250,28.2298,2437.7,2437.3,6.0124]
[1750807776446,0.65611,2437.6,2437.5,0.6561]
[1750807776844,0.65594,2438.2,2437.6,1.64023]
[1750807777143,3.2078,2438.3,2438.2,0.65593]
[1750807777341,28.8827,2438.3,2438.2,0.65593]
[1750807777738,3.8637,2438.3,2438.2,0.65593]
[1750807778049,3.2078,2438.3,2438.2,0.65593]
[1750807778248,3.8737,2438.3,2438.2,0.65593]
[1750807779151,4.5296,2438.3,2438.2,0.65593]
[1750807780157,4.5296,2438.3,2438.1,0.65593]
[1750807780356,4.5296,2438.3,2438.2,0.65593]
[1750807780853,3.8737,2438.3,2438.2,0.65593]
[1750807781340,4.5296,2438.3,2438.2,0.65593]
[1750807781539,4.5296,2438.3,2437.9,2.6828]
[1750807781747,4.5296,2438.3,2438.2,0.65593]
[1750807782355,12.73783906,2438.3,2438.0,0.65596]
[1750807782555,1.3431,2438.2,2438.1,0.65595]
[1750807782757,1.99903,2438.2,2438.1,0.65595]
[1750807783754,0.65595,2438.1,2438.0,0.65597]
[1750807783954,25.012,2438.1,2438.0,0.65597]
[1750807786056,25.66795,2438.1,2438.0,0.65597]
[1750807786256,26.68627315,2438.1,2438.0,0.65597]
[1750807786652,26.03032315,2438.1,2438.0,0.65597]
[1750807787854,26.68627315,2438.1,2438.0,0.65598]
[1750807788858,26.03032315,2438.1,2438.0,0.65598]
[1750807789153,26.03032315,2438.1,2437.9,0.65599]
[1750807789350,1.01832315,2438.0,2437.9,0.65599]
[1750807790357,1.67430315,2438.0,2437.9,0.65599]
[1750807790550,1.01832315,2438.0,2437.9,0.65599]
[1750807790949,13.08926221,2438.0,2437.6,1.3125]
[1750807791150,1.73922315,2437.9,2437.8,0.65603]
[1750807792147,1.01832315,2437.9,2437.8,6.27196906]
[1750807792459,26.03015916,2438.2,2438.1,0.65595]
[1750807792656,26.03016953,2438.2,2438.1,0.65595]
[1750807796457,1.02116953,2438.2,2438.1,0.65595]
[1750807800162,1.67709953,2438.2,2438.1,0.65595]
[1750807800361,1.02116953,2438.2,2438.1,0.65595]
[1750807800566,1.67709953,2438.2,2438.1,0.65595]
[1750807800768,1.02116953,2438.2,2438.0,1.3532]
[1750807801062,1.02116953,2438.1,2438.0,2.00916]
[1750807801460,1.67711953,2438.1,2438.0,2.00916]
[1750807802566,1.02116953,2438.1,2438.0,2.00916]
[1750807804670,1.67711953,2438.1,2438.0,2.00916]
[1750807805167,1.67711953,2438.1,2437.9,0.6898]
[1750807805168,0.65598,2438.0,2437.9,0.6898]
[1750807805365,0.65601,2437.9,2437.8,0.65602]
[1750807805666,1.67717953,2437.9,2437.8,0.65602]
[1750807806068,1.02116953,2437.9,2437.8,0.65602]
[1750807806371,1.67717953,2437.9,2437.8,0.65602]
[1750807806565,7.47316953,2437.9,2437.4,3.2078]
[1750807806773,8.06998204,2437.7,2437.0,2.40813906]
[1750807806958,32.62716953,2437.6,2437.5,0.65611]
[1750807807158,33.28327953,2437.6,2437.4,0.65613]
[1750807807473,26.18216953,2437.5,2437.4,0.65613]
[1750807807770,1.02116953,2437.5,2437.4,0.65613]
[1750807807963,26.18016953,2437.5,2437.4,0.65613]
[1750807808166,26.17916953,2437.5,2437.4,0.65613]
[1750807809560,26.83528953,2437.5,2437.4,0.65613]
[1750807809764,26.17916953,2437.5,2437.2,1.3895]
[1750807809964,1.02116953,2437.4,2437.3,0.65617]
[1750807810467,1.02116953,2437.4,2437.3,0.74617]
[1750807810868,1.02116953,2437.4,2437.3,0.65617]
[1750807811266,1.70606953,2437.4,2437.3,0.65617]
[1750807812375,5.57000953,2437.4,2437.3,0.65617]
[1750807812874,4.91386953,2437.4,2437.3,0.65617]
[1750807813465,29.37396953,2437.4,2437.3,0.65617]
[1750807813673,28.3528,2437.4,2437.3,0.65617]
[1750807814375,25.145,2437.4,2437.3,0.65617]
[1750807814981,4.56688,2437.7,2437.6,0.65609]
[1750807815271,37.18082379,2437.7,2437.6,0.65609]
[1750807815867,5.58882379,2437.7,2437.6,0.65609]
[1750807816062,4.93274379,2437.7,2437.6,0.65609]
[1750807816267,36.52074379,2437.7,2437.6,0.65609]
[1750807816672,37.17680379,2437.7,2437.6,0.65609]
[1750807816873,36.52074379,2437.7,2437.6,0.65609]
[1750807817674,4.93274379,2437.7,2437.6,0.65609]
[1750807817875,36.51474379,2437.7,2437.6,0.65609]
[1750807818376,11.38574379,2437.7,2437.6,0.65609]
[1750807818677,36.51074379,2437.7,2437.6,0.65609]
[1750807820869,4.93274379,2437.7,2437.6,0.65609]
[1750807821069,28.3328,2437.7,2437.6,1.99779]
[1750807821274,28.3328,2437.7,2437.6,2.70709]
[1750807821872,6.453,2437.9,2437.8,0.65603]
[1750807822076,7.47506622,2437.9,2437.8,0.65603]
[1750807822378,25.13,2437.9,2437.8,0.65603]
[1750807822877,25.13,2437.9,2437.8,1.99773]
[1750807823082,25.13,2437.9,2437.8,0.65603]
[1750807823576,26.15235856,2437.9,2437.8,0.65603]
[1750807823778,26.83135856,2437.9,2437.8,0.65603]
[1750807827179,26.15235856,2437.9,2437.8,0.65603]
[1750807827371,25.13,2437.9,2437.8,0.65603]
[1750807827575,25.13,2437.9,2437.8,2.05043]
[1750807828379,25.13,2437.9,2437.8,0.65603]
[1750807828582,26.15285943,2437.9,2437.8,0.65603]
[1750807830787,1.02285943,2437.9,2437.8,0.65603]
[1750807833087,25.106,2438.0,2437.9,0.65601]
[1750807833284,26.1287577,2438.0,2437.9,0.65601]
[1750807837701,1.0227577,2438.0,2437.9,0.65601]
[1750807838498,28.2918,2438.1,2438.0,0.65598]
[1750807838797,29.31306633,2438.1,2438.0,0.65598]
[1750807839200,4.22906633,2438.1,2438.0,0.65598]
[1750807840104,4.22906633,2438.1,2438.0,3.06411906]
[1750807840304,4.22906633,2438.1,2438.0,2.08398]
[1750807841003,4.22906633,2438.1,2438.0,0.65598]
[1750807841906,4.22906633,2438.1,2438.0,2.08398]
[1750807842407,4.22906633,2438.1,2438.0,0.65598]
[1750807846207,1.02126633,2438.1,2438.0,0.65598]
[1750807851305,26.05626633,2438.1,2438.0,0.65598]
[1750807851604,26.05626633,2438.1,2438.0,2.07178]
[1750807852916,1.02126633,2438.1,2438.0,2.07178]
[1750807855506,1.02126633,2438.1,2438.0,0.65598]
[1750807858514,26.03926633,2438.1,2438.0,0.65598]
[1750807858705,26.03926633,2438.1,2438.0,2.05658]
[1750807862916,1.02126633,2438.1,2438.0,2.05658]
[1750807865024,12.11984298,2438.5,2438.4,0.65587]
[1750807865225,36.39130917,2438.5,2438.4,0.65587]
[1750807865819,29.93330917,2438.5,2437.9,3.2078]
[1750807866025,2.40813906,2438.1,2438.0,0.65596]
[1750807866223,28.87973,2438.2,2438.1,0.65595]
[1750807866417,28.91,2438.2,2438.1,0.65595]
[1750807868228,28.91,2438.2,2438.1,2.05205]
[1750807868822,5.66184298,2438.5,2438.1,5.44411906]
[1750807869126,28.2238,2438.5,2438.4,0.65587]
[1750807869824,3.2078,2438.5,2438.4,0.65587]
[1750807870128,28.2238,2438.5,2438.4,0.65587]
[1750807874330,28.87965,2438.5,2438.4,0.65587]
[1750807874524,29.5835,2438.5,2438.4,0.65587]
[1750807874922,28.2238,2438.5,2438.4,0.65587]
[1750807876032,3.81374298,2438.8,2438.4,0.65587]
[1750807876033,3.2078,2438.8,2438.7,0.65579]
[1750807876332,28.2228,2438.8,2438.7,0.65579]
[1750807876732,30.63093906,2438.8,2438.7,0.65579]
[1750807876926,5.61593906,2438.8,2438.7,0.65579]
[1750807877131,31.64960362,2438.8,2438.7,0.65579]
[1750807877531,29.24146456,2438.8,2438.7,0.65579]
[1750807879137,26.03366456,2438.8,2438.7,0.65579]
[1750807883139,1.01966456,2438.8,2438.7,0.65579]
[1750807883338,26.03166456,2438.8,2438.7,0.65579]
[1750807884334,26.68743456,2438.8,2438.7,0.65579]
[1750807884535,26.73506456,2438.8,2438.7,0.65579]
[1750807884734,29.14320362,2438.8,2438.7,0.65579]
[1750807884936,26.73406456,2438.8,2438.7,0.65579]
[1750807885141,29.79797362,2438.8,2438.7,0.65579]
[1750807886246,0.65581,2438.7,2438.6,0.65582]
[1750807886542,3.80907456,2438.7,2438.6,0.65582]
[1750807887445,3.80905456,2438.7,2438.6,0.65582]
[1750807887942,3.15326456,2438.7,2438.6,0.65582]
[1750807888142,3.80905456,2438.7,2438.6,0.65582]
[1750807888845,0.65584,2438.6,2438.5,0.65583]
[1750807889046,32.30244362,2438.6,2438.5,0.65583]
[1750807889243,33.69134362,2438.6,2438.5,0.65583]
[1750807889546,33.03550362,2438.6,2438.3,0.65589]
[1750807889843,2.40813906,2438.4,2438.3,0.65589]
[1750807890036,28.43780362,2438.4,2438.3,0.65589]
[1750807890238,29.10430362,2438.4,2438.3,0.65589]
[1750807890634,29.76020362,2438.4,2438.3,0.65589]
[1750807890839,29.10430362,2438.4,2438.3,0.65589]
[1750807891141,26.69616456,2438.4,2438.3,0.65589]
[1750807893335,1.68616456,2438.4,2438.3,0.65589]
[1750807893535,26.03066456,2438.4,2438.3,0.65589]
[1750807894444,26.03066456,2438.4,2438.3,2.70949]
[1750807895340,26.03066456,2438.4,2438.3,0.65589]
[1750807895746,26.72896456,2438.4,2438.3,0.65589]
[1750807897745,27.38483456,2438.4,2438.3,0.65589]
[1750807898152,26.72896456,2438.4,2438.3,0.65589]
[1750807898448,27.38483456,2438.4,2438.3,0.65589]
[1750807898751,26.72896456,2438.4,2438.3,0.65589]
[1750807900446,27.38483456,2438.4,2438.3,0.65589]
[1750807900653,26.72896456,2438.4,2438.3,0.65589]
[1750807901153,27.38483456,2438.4,2438.3,0.65589]
[1750807902542,26.72896456,2438.4,2438.3,0.65589]
[1750807903248,27.38483456,2438.4,2438.3,0.65589]
[1750807903546,26.72896456,2438.4,2438.3,0.65589]
[1750807907354,27.38483456,2438.4,2438.3,0.6559]
[1750807908660,26.72896456,2438.4,2438.3,0.6559]
[1750807909056,27.38483456,2438.4,2438.3,0.6559]
[1750807909656,27.38483456,2438.4,2438.2,0.6608]
[1750807909657,0.65591,2438.3,2438.2,0.6559]
[1750807909862,4.22746456,2438.3,2438.2,0.6559]
[1750807910457,4.22746456,2438.3,2437.9,2.32137]
[1750807910458,0.65594,2438.2,2438.1,0.65593]
[1750807910659,26.68560456,2438.2,2438.1,0.65593]
[1750807914359,0.65596,2438.1,2438.0,0.65596]
[1750807914556,4.79626362,2438.1,2438.0,0.65596]
[1750807915259,0.65598,2438.0,2437.9,1.33739]
[1750807915466,29.89344456,2438.0,2437.9,1.33739]
[1750807915762,29.23746456,2438.0,2437.9,1.33739]
[1750807916167,29.23746456,2438.0,2437.8,0.65602]
[1750807916469,9.88480362,2437.9,2437.8,0.65602]
[1750807917563,0.65606,2437.8,2437.6,0.65607]
[1750807917770,31.71660362,2437.7,2437.6,0.65607]
[1750807918759,0.65609,2437.6,2437.5,1.3415]
[1750807918965,1.67575456,2437.6,2437.5,0.6561]
[1750807919369,1.67576456,2437.6,2437.4,0.65613]
[1750807919665,26.76276456,2437.5,2437.4,0.65613]
[1750807920071,29.82703362,2437.5,2437.3,1.4072]
[1750807920271,1.01966456,2437.4,2437.3,2.06337]
[1750807920668,10.86783456,2437.4,2436.5,4.84872]
[1750807920875,5.61593906,2436.9,2436.8,0.65628]
[1750807921066,32.37686281,2436.9,2436.8,0.65628]
[1750807921372,0.6563,2436.8,2436.7,1.33512]
[1750807921572,31.42223906,2436.9,2436.7,1.33512]
[1750807921769,0.6563,2436.8,2436.7,0.6788]
[1750807922164,0.6563,2436.8,2436.7,1.33513]
[1750807922871,32.07853906,2436.9,2436.7,1.33513]
[1750807923065,31.42223906,2436.9,2436.8,0.6563]
[1750807925476,32.07851906,2436.9,2436.8,0.6563]
[1750807926188,31.42223906,2436.9,2436.8,0.6563]
[1750807929191,32.07851906,2436.9,2436.8,0.6563]
[1750807929694,0.6563,2436.8,2436.7,0.6788]
[1750807930385,0.6563,2436.8,2436.7,1.33513]
[1750807930791,0.6563,2436.8,2436.2,7.25710906]
[1750807930792,31.42223906,2436.9,2436.2,4.84897]
[1750807930991,31.42223906,2436.9,2436.5,0.65637]
[1750807930992,2.40813906,2436.6,2436.5,0.65637]
[1750807931191,30.68793906,2436.6,2436.5,0.65637]
[1750807931395,31.34633906,2436.6,2436.5,0.65637]
[1750807932690,0.65638,2436.5,2436.4,0.7017]
[1750807932989,3.8662,2436.6,2436.5,0.65638]
[1750807933186,3.2078,2436.6,2436.5,0.65638]
[1750807933380,34.7918,2436.6,2436.5,0.65638]
[1750807933583,34.7918,2436.6,2436.5,2.05298]
[1750807933992,35.44816,2436.6,2436.5,2.05298]
[1750807934192,34.7918,2436.6,2436.5,2.05298]
[1750807936098,35.44816,2436.6,2436.5,2.05298]
[1750807936392,37.19993906,2436.6,2436.4,0.6869]
[1750807936698,37.19993906,2436.6,2436.4,1.3433]
[1750807936699,0.65638,2436.5,2436.4,1.3433]
[1750807937194,0.65638,2436.5,2436.4,0.6869]
[1750807938086,37.19993906,2436.6,2436.2,2.78625]
[1750807938288,3.2078,2436.3,2436.2,2.78625]
[1750807938488,28.93924,2436.3,2436.2,2.1298]
[1750807938688,28.93924,2436.3,2436.1,0.65648]
[1750807938689,0.65647,2436.2,2436.1,0.65648]
[1750807939592,0.65647,2436.2,2436.0,0.6542]
[1750807939794,25.08,2436.1,2436.0,1.31072]
[1750807940798,3.2078,2436.3,2436.2,0.65647]
[1750807940999,28.2918,2436.3,2436.2,0.65647]
[1750807942004,3.2078,2436.3,2436.2,0.65647]
[1750807942296,28.3038,2436.3,2436.2,0.65647]
[1750807943496,28.3018,2436.3,2436.2,0.65647]
[1750807944500,3.2078,2436.3,2436.2,0.65647]
[1750807944802,28.2958,2436.3,2436.2,0.65647]
[1750807945204,28.2928,2436.3,2436.2,0.65647]
[1750807946201,28.2908,2436.3,2436.2,0.65647]
[1750807948489,29.30601261,2436.3,2436.2,0.65647]
[1750807951001,29.28901261,2436.3,2436.2,0.65647]
[1750807952100,4.22301261,2436.3,2436.2,0.65647]
[1750807952300,29.28801261,2436.3,2436.2,0.65647]
[1750807952804,4.22301261,2436.3,2436.2,0.65647]
[1750807957999,0.65654,2436.0,2435.8,0.6848]
[1750807958201,6.27247906,2436.0,2435.9,0.65653]
[1750807958410,7.286882,2436.0,2435.9,0.65653]
[1750807959108,6.630342,2436.0,2435.9,0.65653]
[1750807959509,7.286862,2436.0,2435.9,0.65653]
[1750807960200,6.630342,2436.0,2435.9,0.65653]
[1750807964504,6.630342,2436.0,2435.9,0.65655]
[1750807964710,7.286862,2436.0,2435.9,0.65655]
[1750807965413,7.286862,2436.0,2435.6,1.3535]
[1750807965602,1.01440294,2435.9,2435.6,1.4135]
[1750807965804,1.01440294,2435.9,2435.8,0.65657]
[1750807966109,26.06440294,2435.9,2435.8,0.65657]
[1750807966310,26.72095294,2435.9,2435.8,0.65657]
[1750807966810,26.06440294,2435.9,2435.8,0.65657]
[1750807971109,26.05340294,2435.9,2435.8,0.65657]
[1750807972318,26.05340294,2435.9,2435.8,1.33647]
[1750807973212,26.70995294,2435.9,2435.8,0.65657]
[1750807973411,26.70995294,2435.9,2435.8,0.66657]
[1750807973811,26.70995294,2435.9,2435.8,0.65657]
[1750807974114,28.05685294,2435.9,2435.8,0.65657]
[1750807974411,0.65667,2435.5,2435.4,0.65668]
[1750807974707,32.326012,2435.5,2435.4,0.65668]
[1750807975715,0.65668,2435.4,2435.3,0.6567]
[1750807976011,1.67108294,2435.4,2435.3,0.6567]
[1750807976200,1.01440294,2435.4,2435.3,0.6567]
[1750807976602,30.65493906,2435.5,2435.4,0.65668]
[1750807976807,31.66848561,2435.5,2435.4,0.65668]
[1750807978705,29.26134655,2435.5,2435.4,0.65668]
[1750807979718,26.05454655,2435.5,2435.4,0.65668]
[1750807979908,25.041,2435.5,2435.4,0.65668]
[1750807980604,3.2078,2435.8,2435.4,1.37048]
[1750807980807,9.6898,2436.1,2436.0,0.65652]
[1750807981011,35.74413249,2436.1,2435.6,1.64154]
[1750807981208,35.74413249,2436.1,2435.9,0.65655]
[1750807981209,1.69353249,2436.0,2435.9,0.65655]
[1750807981411,25.041,2436.0,2435.9,0.65655]
[1750807981618,25.041,2436.0,2435.9,2.62305]
[1750807982014,26.05448578,2436.0,2435.9,2.62305]
[1750807982514,1.01348578,2436.0,2435.9,2.62305]
[1750807982709,26.05548578,2436.0,2435.9,2.62305]
[1750807983206,26.05548578,2436.0,2435.9,0.65655]
[1750807983709,26.05548578,2436.0,2435.9,1.99855]
[1750807984719,1.01348578,2436.0,2435.9,1.99855]
[1750807985015,26.05448578,2436.0,2435.9,1.99855]
[1750807987420,1.01348578,2436.0,2435.9,1.99855]
[1750807987616,3.2078,2436.4,2436.0,1.64131]
[1750807987916,3.2078,2436.7,2436.6,0.65636]
[1750807988217,4.22187572,2436.7,2436.6,0.65636]
[1750807988419,3.2078,2436.7,2436.6,0.65636]
[1750807991111,28.90105,2437.0,2436.9,0.65627]
[1750807991306,4.22040662,2437.0,2436.9,0.65627]
[1750807991609,3.2078,2437.3,2437.2,0.6562]
[1750807994109,3.06425906,2437.5,2437.3,0.65615]
[1750807994418,25.059,2437.4,2437.3,0.65615]
[1750807996024,0.6562,2437.3,2436.8,3.2078]
[1750807996219,3.91,2437.2,2437.1,0.6562]
[1750807996415,6.31813906,2437.2,2437.1,0.6562]
[1750807997615,0.7022,2437.2,2437.1,0.6562]
[1750807998017,2.40813906,2437.4,2436.9,1.64067]
[1750807998216,28.15933906,2437.4,2437.0,2.084]
[1750807998723,28.15933906,2437.4,2437.3,0.65617]
[1750807999222,25.7512,2437.4,2437.3,0.65617]
[1750807999725,25.7472,2437.4,2437.3,0.65617]
[1750808001919,25.038,2437.4,2437.1,1.64056]
[1750808002121,25.038,2437.4,2437.3,0.65617]
[1750808002921,1.3483,2438.0,2437.3,0.65617]
[1750808002922,3.2078,2437.8,2437.7,0.65606]
[1750808004020,12.07793906,2438.1,2438.0,0.65598]
[1750808004221,37.16193906,2438.1,2438.0,0.65598]
[1750808006229,0.6561,2437.6,2436.7,3.2078]
[1750808006421,2.40813906,2437.4,2437.3,0.65617]
[1750808008226,28.9691,2437.5,2437.4,0.65614]
[1750808011527,3.2078,2437.8,2437.4,5.0]
[1750808011734,3.2078,2438.2,2438.1,0.65595]
[1750808013133,28.3668,2438.2,2438.1,0.65595]
[1750808013627,7.1811,2438.4,2438.3,0.6559]
[1750808013835,33.3407036,2438.4,2438.3,0.6559]
[1750808014038,32.3331,2438.4,2438.3,0.6559]
[1750808014334,33.34070152,2438.4,2438.3,0.6559]
[1750808015636,26.83470152,2438.4,2438.3,0.6559]
[1750808015938,26.83270152,2438.4,2438.3,0.6559]
[1750808016434,26.83398056,2438.4,2438.3,0.6559]
[1750808019238,26.82498056,2438.4,2438.3,0.6559]
[1750808019640,26.14188056,2438.4,2438.3,0.6559]
[1750808020238,1.00888056,2438.4,2438.3,0.6559]
[1750808020431,3.2078,2438.5,2438.4,0.65587]
[1750808022536,4.22378688,2438.5,2438.4,0.65587]
[1750808022837,25.132,2438.5,2438.4,0.65587]
[1750808027338,3.2078,2438.8,2438.2,4.5557]
[1750808027542,28.3348,2439.1,2438.9,0.65573]
[1750808027749,1.67997225,2439.0,2438.9,0.65573]
[1750808028232,2.33568225,2439.0,2438.9,0.65573]
[1750808028433,13.17497225,2439.0,2438.6,3.2078]
[1750808028648,3.2078,2438.7,2438.6,0.6558]
[1750808028938,29.37197225,2438.7,2438.6,0.6558]
[1750808030340,31.76984488,2438.7,2438.6,0.6558]
[1750808030643,3.2078,2439.0,2438.9,0.65574]
[1750808030942,4.22325842,2439.0,2438.9,0.65574]
[1750808031543,29.42925842,2439.0,2438.9,0.65574]
[1750808033445,29.41825842,2439.0,2438.9,0.65574]
[1750808033945,29.41825842,2439.0,2438.9,2.02244]
[1750808035044,1.01545842,2439.0,2438.9,4.42031263]
[1750808035344,25.194,2439.2,2439.1,0.65568]
[1750808035535,28.4048,2439.6,2439.5,0.65558]
[1750808036042,0.65558,2439.5,2439.4,0.65559]
[1750808036345,3.05346263,2439.5,2439.4,0.6556]
[1750808036644,0.65564,2439.3,2439.2,0.65564]
[1750808036948,2.39787263,2439.2,2439.1,0.65568]
[1750808037447,3.10807263,2439.2,2439.1,0.65568]
[1750808037835,3.76373263,2439.2,2439.1,0.65568]
[1750808038243,1.36586,2439.2,2439.1,0.65568]